[Event "Titled Tuesday Blitz February 14 Early 2023"]
[White "Ramirez Allo, Eduardo"]
[Black "Tinmaz, Kerem"]
[WhiteFideId "2224178"]
[BlackFideId "44559151"]
[WhiteElo "2274"]
[BlackElo "2177"]
[Result "1-0"]
[Round "09"]
[TimeControl "180+2"]
[Date "2023.02.14"]
[WhiteClock "0:00:02"]
[BlackClock "0:00:02"]

1. Nf3 {[%clk 0:03:00]}  d5 {[%clk 0:02:58]} 2. c4 {[%clk 0:03:01]}  c6 {[%clk 0:02:58]} 3. d4 {[%clk 0:03:00]}  Nf6 {[%clk 0:02:59]} 4. Qc2 {[%clk 0:03:01]}  dxc4 {[%clk 0:02:56]} 5. Qxc4 {[%clk 0:03:02]}  Bg4 {[%clk 0:02:56]} 6. Nbd2 {[%clk 0:03:00]}  Nbd7 {[%clk 0:02:43]} 7. g3 {[%clk 0:02:59]}  Nb6 {[%clk 0:02:38]} 8. Qc2 {[%clk 0:02:59]}  e6 {[%clk 0:02:37]} 9. Bg2 {[%clk 0:02:59]}  Be7 {[%clk 0:02:36]} 10. O-O {[%clk 0:02:59]}  O-O {[%clk 0:02:36]} 11. b3 {[%clk 0:02:50]}  Rc8 {[%clk 0:02:34]} 12. Bb2 {[%clk 0:02:47]}  h6 {[%clk 0:02:19]} 13. Rac1 {[%clk 0:02:46]}  c5 {[%clk 0:02:05]} 14. dxc5 {[%clk 0:02:36]}  Rxc5 {[%clk 0:01:21]} 15. Qb1 {[%clk 0:02:37]}  Nbd5 {[%clk 0:01:04]} 16. Nc4 {[%clk 0:02:23]}  Qc7 {[%clk 0:00:41]} 17. Ba3 {[%clk 0:02:07]}  Rc6 {[%clk 0:00:40]} 18. Bxe7 {[%clk 0:02:06]}  Qxe7 {[%clk 0:00:41]} 19. Nfe5 {[%clk 0:02:04]}  Rc7 {[%clk 0:00:33]} 20. Nxg4 {[%clk 0:02:04]}  Nxg4 {[%clk 0:00:34]} 21. Bf3 {[%clk 0:01:55]}  Ngf6 {[%clk 0:00:32]} 22. Rfd1 {[%clk 0:01:55]}  Rfc8 {[%clk 0:00:30]} 23. a4 {[%clk 0:01:54]}  a6 {[%clk 0:00:30]} 24. a5 {[%clk 0:01:52]}  Qb4 {[%clk 0:00:28]} 25. Qd3 {[%clk 0:01:42]}  b5 {[%clk 0:00:20]} 26. axb6 {[%clk 0:01:39]}  Nxb6 {[%clk 0:00:20]} 27. Nxb6 {[%clk 0:01:26]}  Qxb6 {[%clk 0:00:07]} 28. Rxc7 {[%clk 0:01:16]}  Rxc7 {[%clk 0:00:08]} 29. Kg2 {[%clk 0:01:06]}  Rd7 {[%clk 0:00:08]} 30. Qc2 {[%clk 0:01:04]}  Rxd1 {[%clk 0:00:08]} 31. Qxd1 {[%clk 0:01:05]}  g6 {[%clk 0:00:06]} 32. h4 {[%clk 0:01:05]}  Kg7 {[%clk 0:00:06]} 33. Qd3 {[%clk 0:01:03]}  h5 {[%clk 0:00:06]} 34. e3 {[%clk 0:00:58]}  a5 {[%clk 0:00:07]} 35. e4 {[%clk 0:00:30]}  Qc5 {[%clk 0:00:06]} 36. Be2 {[%clk 0:00:27]}  Qb4 {[%clk 0:00:03]} 37. f3 {[%clk 0:00:25]}  Qa3 {[%clk 0:00:03]} 38. Qc4 {[%clk 0:00:20]}  Qb2 {[%clk 0:00:02]} 39. Kf2 {[%clk 0:00:19]}  Nd7 {[%clk 0:00:03]} 40. Ke3 {[%clk 0:00:17]}  Ne5 {[%clk 0:00:03]} 41. Qd4 {[%clk 0:00:15]}  Qxb3+ {[%clk 0:00:03]} 42. Kf2 {[%clk 0:00:14]}  f6 {[%clk 0:00:03]} 43. Qa7+ {[%clk 0:00:10]}  Kh6 {[%clk 0:00:04]} 44. Qxa5 {[%clk 0:00:10]}  Qc2 {[%clk 0:00:02]} 45. Qa6 {[%clk 0:00:07]}  Qc5+ {[%clk 0:00:02]} 46. Kg2 {[%clk 0:00:07]}  Qe3 {[%clk 0:00:02]} 47. Qa2 {[%clk 0:00:03]}  Nf7 {[%clk 0:00:01]} 48. Qc2 {[%clk 0:00:03]}  Nd6 {[%clk 0:00:01]} 49. Kf1 {[%clk 0:00:04]}  Nf7 {[%clk 0:00:01]} 50. Qc6 {[%clk 0:00:04]}  Ne5 {[%clk 0:00:01]} 51. Qxe6 {[%clk 0:00:04]}  Qc1+ {[%clk 0:00:01]} 52. Kf2 {[%clk 0:00:03]}  Qc5+ {[%clk 0:00:01]} 53. Kg2 {[%clk 0:00:04]}  Qe3 {[%clk 0:00:01]} 54. Qa6 {[%clk 0:00:05]}  Qd2 {[%clk 0:00:01]} 55. Kf2 {[%clk 0:00:04]}  Qd4+ {[%clk 0:00:01]} 56. Kf1 {[%clk 0:00:05]}  Qe3 {[%clk 0:00:02]} 57. Qxf6 {[%clk 0:00:04]}  Qc1+ {[%clk 0:00:02]} 58. Kf2 {[%clk 0:00:04]}  Qc5+ {[%clk 0:00:03]} 59. Kg2 {[%clk 0:00:05]}  Qc3 {[%clk 0:00:02]} 60. Qf4+ {[%clk 0:00:04]}  Kg7 {[%clk 0:00:03]} 61. Kf2 {[%clk 0:00:02]}  Nd3+ {[%clk 0:00:03]} 62. Bxd3 {[%clk 0:00:02]}  Qxd3 {[%clk 0:00:04]} 63. Qe3 {[%clk 0:00:03]}  Qc2+ {[%clk 0:00:04]} 64. Qe2 {[%clk 0:00:04]}  Qc5+ {[%clk 0:00:04]} 65. Kg2 {[%clk 0:00:04]}  Qd4 {[%clk 0:00:04]} 66. Qc2 {[%clk 0:00:04]}  Qe3 {[%clk 0:00:04]} 67. Qb2+ {[%clk 0:00:04]}  Kh7 {[%clk 0:00:04]} 68. Qf2 {[%clk 0:00:05]}  Qd3 {[%clk 0:00:04]} 69. Qe1 {[%clk 0:00:05]}  Qc2+ {[%clk 0:00:04]} 70. Qf2 {[%clk 0:00:05]}  Qd3 {[%clk 0:00:04]} 71. e5 {[%clk 0:00:05]}  Qd5 {[%clk 0:00:03]} 72. Qe2 {[%clk 0:00:05]}  Qe6 {[%clk 0:00:04]} 73. Qe4 {[%clk 0:00:04]}  Kg7 {[%clk 0:00:04]} 74. f4 {[%clk 0:00:04]}  Qa2+ {[%clk 0:00:03]} 75. Kf3 {[%clk 0:00:04]}  Qb3+ {[%clk 0:00:03]} 76. Qe3 {[%clk 0:00:04]}  Qd5+ {[%clk 0:00:04]} 77. Ke2 {[%clk 0:00:05]}  Qg2+ {[%clk 0:00:04]} 78. Kd3 {[%clk 0:00:06]}  Qd5+ {[%clk 0:00:04]} 79. Kc3 {[%clk 0:00:06]}  Qc6+ {[%clk 0:00:04]} 80. Kd4 {[%clk 0:00:05]}  Qb6+ {[%clk 0:00:04]} 81. Ke4 {[%clk 0:00:05]}  Qc6+ {[%clk 0:00:05]} 82. Kd3 {[%clk 0:00:06]}  Qb5+ {[%clk 0:00:05]} 83. Kd2 {[%clk 0:00:06]}  Qb2+ {[%clk 0:00:05]} 84. Kd3 {[%clk 0:00:05]}  Qb3+ {[%clk 0:00:05]} 85. Ke2 {[%clk 0:00:05]}  Qc2+ {[%clk 0:00:06]} 86. Qd2 {[%clk 0:00:05]}  Qe4+ {[%clk 0:00:07]} 87. Kf2 {[%clk 0:00:05]}  Qf5 {[%clk 0:00:06]} 88. Ke3 {[%clk 0:00:04]}  Qe6 {[%clk 0:00:04]} 89. Qc3 {[%clk 0:00:02]}  Qd5 {[%clk 0:00:04]} 90. e6+ {[%clk 0:00:02]}  Kf8 {[%clk 0:00:02]} 91. Qc8+ {[%clk 0:00:01]}  Kg7 {[%clk 0:00:02]} 92. Qd7+ {[%clk 0:00:02]} 1-0


[Site "https://www.chess.com"]

[Event "Titled Tuesday Blitz February 14 Early 2023"]
[White "surrenderPLS"]
[Black "Lesbekova, Assel"]
[BlackFideId "13713248"]
[WhiteElo "2491"]
[BlackElo "1772"]
[Result "1-0"]
[Round "09"]
[TimeControl "180+2"]
[Date "2023.02.14"]
[WhiteClock "0:00:40"]
[BlackClock "0:00:30"]

1. e4 {[%clk 0:03:00]}  c5 {[%clk 0:02:53]} 2. Nf3 {[%clk 0:03:00]}  Nc6 {[%clk 0:02:49]} 3. Nc3 {[%clk 0:03:00]}  Nf6 {[%clk 0:02:47]} 4. d4 {[%clk 0:02:59]}  cxd4 {[%clk 0:02:48]} 5. Nxd4 {[%clk 0:02:59]}  e5 {[%clk 0:02:48]} 6. Ndb5 {[%clk 0:02:59]}  d6 {[%clk 0:02:48]} 7. Nd5 {[%clk 0:02:59]}  Nxd5 {[%clk 0:02:47]} 8. exd5 {[%clk 0:03:00]}  Nb8 {[%clk 0:02:48]} 9. a4 {[%clk 0:02:59]}  Be7 {[%clk 0:02:46]} 10. Bd3 {[%clk 0:02:58]}  f5 {[%clk 0:02:45]} 11. O-O {[%clk 0:02:56]}  O-O {[%clk 0:02:42]} 12. f4 {[%clk 0:02:56]}  e4 {[%clk 0:02:42]} 13. Be2 {[%clk 0:02:56]}  Na6 {[%clk 0:02:35]} 14. Be3 {[%clk 0:02:54]}  Nc7 {[%clk 0:02:35]} 15. Nxa7 {[%clk 0:02:50]}  Bd7 {[%clk 0:02:32]} 16. Nb5 {[%clk 0:02:44]}  Nxb5 {[%clk 0:02:30]} 17. Bxb5 {[%clk 0:02:44]}  Bxb5 {[%clk 0:02:28]} 18. axb5 {[%clk 0:02:45]}  Rxa1 {[%clk 0:02:27]} 19. Qxa1 {[%clk 0:02:46]}  Qc7 {[%clk 0:02:26]} 20. Qa4 {[%clk 0:02:41]}  Bf6 {[%clk 0:02:16]} 21. c3 {[%clk 0:02:40]}  Qf7 {[%clk 0:02:05]} 22. Rd1 {[%clk 0:02:34]}  Qh5 {[%clk 0:02:02]} 23. Re1 {[%clk 0:02:23]}  g5 {[%clk 0:01:59]} 24. Qb4 {[%clk 0:02:14]}  gxf4 {[%clk 0:01:58]} 25. Bxf4 {[%clk 0:02:13]}  Be5 {[%clk 0:01:58]} 26. Bxe5 {[%clk 0:02:12]}  dxe5 {[%clk 0:01:59]} 27. Qe7 {[%clk 0:02:10]}  Re8 {[%clk 0:01:50]} 28. Qf6 {[%clk 0:02:05]}  f4 {[%clk 0:01:27]} 29. d6 {[%clk 0:02:02]}  Qg4 {[%clk 0:01:17]} 30. h3 {[%clk 0:01:48]}  Qd7 {[%clk 0:01:10]} 31. Rxe4 {[%clk 0:01:45]}  Qxb5 {[%clk 0:01:10]} 32. h4 {[%clk 0:01:23]}  Qd5 {[%clk 0:01:07]} 33. Re1 {[%clk 0:01:13]}  Rf8 {[%clk 0:01:01]} 34. Qg5+ {[%clk 0:01:07]}  Kh8 {[%clk 0:00:59]} 35. Qxe5+ {[%clk 0:01:07]}  Qxe5 {[%clk 0:00:58]} 36. Rxe5 {[%clk 0:01:06]}  Rd8 {[%clk 0:00:58]} 37. Re7 {[%clk 0:01:03]}  Rxd6 {[%clk 0:00:57]} 38. Rxb7 {[%clk 0:01:03]}  Rd2 {[%clk 0:00:57]} 39. c4 {[%clk 0:00:59]}  Rc2 {[%clk 0:00:56]} 40. b3 {[%clk 0:00:59]}  Kg8 {[%clk 0:00:53]} 41. h5 {[%clk 0:00:59]}  h6 {[%clk 0:00:53]} 42. Rc7 {[%clk 0:00:52]}  Rb2 {[%clk 0:00:50]} 43. Rb7 {[%clk 0:00:51]}  Rc2 {[%clk 0:00:50]} 44. Rb5 {[%clk 0:00:42]}  Kg7 {[%clk 0:00:48]} 45. Rf5 {[%clk 0:00:42]}  Rc3 {[%clk 0:00:42]} 46. Rxf4 {[%clk 0:00:42]}  Rxb3 {[%clk 0:00:42]} 47. Kf2 {[%clk 0:00:42]}  Rc3 {[%clk 0:00:41]} 48. g4 {[%clk 0:00:41]}  Rc1 {[%clk 0:00:37]} 49. Ke3 {[%clk 0:00:41]}  Kg8 {[%clk 0:00:36]} 50. Kd4 {[%clk 0:00:41]}  Kg7 {[%clk 0:00:34]} 51. Kd5 {[%clk 0:00:41]}  Rd1+ {[%clk 0:00:33]} 52. Kc5 {[%clk 0:00:41]}  Kg8 {[%clk 0:00:33]} 53. Kc6 {[%clk 0:00:41]}  Kg7 {[%clk 0:00:33]} 54. c5 {[%clk 0:00:41]}  Kg8 {[%clk 0:00:33]} 55. Kc7 {[%clk 0:00:40]}  Kg7 {[%clk 0:00:34]} 56. c6 {[%clk 0:00:40]}  Kg8 {[%clk 0:00:33]} 57. Kc8 {[%clk 0:00:40]}  Rb1 {[%clk 0:00:32]} 58. c7 {[%clk 0:00:40]}  Kg7 {[%clk 0:00:30]} 59. Rd4 {[%clk 0:00:40]} 1-0


[Site "https://www.chess.com"]

[Event "Titled Tuesday Blitz February 14 Early 2023"]
[White "Torres Dominguez, David"]
[Black "Lehtosaari, Mauri"]
[WhiteFideId "2220857"]
[BlackFideId "501999"]
[WhiteElo "1994"]
[BlackElo "2176"]
[Result "1-0"]
[Round "09"]
[TimeControl "180+2"]
[Date "2023.02.14"]
[WhiteClock "0:00:18"]
[BlackClock "0:00:01"]

1. e4 {[%clk 0:02:55]}  c5 {[%clk 0:02:59]} 2. Nc3 {[%clk 0:02:53]}  e6 {[%clk 0:02:57]} 3. f4 {[%clk 0:02:52]}  Nc6 {[%clk 0:02:51]} 4. Nf3 {[%clk 0:02:51]}  d5 {[%clk 0:02:50]} 5. Bb5 {[%clk 0:02:50]}  dxe4 {[%clk 0:02:48]} 6. Bxc6+ {[%clk 0:02:48]}  bxc6 {[%clk 0:02:49]} 7. Nxe4 {[%clk 0:02:48]}  Nf6 {[%clk 0:02:48]} 8. d3 {[%clk 0:02:45]}  Nxe4 {[%clk 0:02:08]} 9. dxe4 {[%clk 0:02:43]}  Qxd1+ {[%clk 0:02:09]} 10. Kxd1 {[%clk 0:02:43]}  Ba6 {[%clk 0:02:06]} 11. Be3 {[%clk 0:02:36]}  Be7 {[%clk 0:01:56]} 12. c3 {[%clk 0:02:27]}  Bd3 {[%clk 0:01:53]} 13. Nd2 {[%clk 0:02:22]}  c4 {[%clk 0:01:49]} 14. Ke1 {[%clk 0:02:19]}  a5 {[%clk 0:01:47]} 15. Kf2 {[%clk 0:02:08]}  a4 {[%clk 0:01:45]} 16. b3 {[%clk 0:02:08]}  cxb3 {[%clk 0:01:07]} 17. axb3 {[%clk 0:02:07]}  a3 {[%clk 0:01:07]} 18. Ra2 {[%clk 0:01:55]}  O-O {[%clk 0:01:04]} 19. Rha1 {[%clk 0:01:47]}  Rfd8 {[%clk 0:00:42]} 20. b4 {[%clk 0:01:40]}  c5 {[%clk 0:00:34]} 21. bxc5 {[%clk 0:01:28]}  Rac8 {[%clk 0:00:32]} 22. Rxa3 {[%clk 0:01:25]}  Bxc5 {[%clk 0:00:32]} 23. Bxc5 {[%clk 0:01:25]}  Rxc5 {[%clk 0:00:33]} 24. Ra8 {[%clk 0:01:25]}  Rdc8 {[%clk 0:00:26]} 25. Rxc8+ {[%clk 0:01:17]}  Rxc8 {[%clk 0:00:26]} 26. Ke3 {[%clk 0:01:14]}  Bb5 {[%clk 0:00:22]} 27. Rc1 {[%clk 0:01:06]}  Kf8 {[%clk 0:00:21]} 28. c4 {[%clk 0:01:06]}  Bc6 {[%clk 0:00:21]} 29. Nf3 {[%clk 0:01:01]}  Ke7 {[%clk 0:00:19]} 30. Ne5 {[%clk 0:01:00]}  Be8 {[%clk 0:00:19]} 31. c5 {[%clk 0:00:59]}  f6 {[%clk 0:00:19]} 32. Nd3 {[%clk 0:00:57]}  Bb5 {[%clk 0:00:18]} 33. Rc3 {[%clk 0:00:56]}  Ra8 {[%clk 0:00:18]} 34. c6 {[%clk 0:00:50]}  Rc8 {[%clk 0:00:16]} 35. Nb4 {[%clk 0:00:42]}  Kd6 {[%clk 0:00:16]} 36. Kd4 {[%clk 0:00:40]}  Bxc6 {[%clk 0:00:15]} 37. e5+ {[%clk 0:00:38]}  fxe5+ {[%clk 0:00:15]} 38. fxe5+ {[%clk 0:00:37]}  Kd7 {[%clk 0:00:15]} 39. g3 {[%clk 0:00:32]}  Bg2 {[%clk 0:00:07]} 40. Rxc8 {[%clk 0:00:31]}  Kxc8 {[%clk 0:00:07]} 41. Nd3 {[%clk 0:00:21]}  Bd5 {[%clk 0:00:05]} 42. Nf4 {[%clk 0:00:20]}  Ba2 {[%clk 0:00:05]} 43. h4 {[%clk 0:00:19]}  Kd7 {[%clk 0:00:04]} 44. g4 {[%clk 0:00:19]}  Kc6 {[%clk 0:00:04]} 45. g5 {[%clk 0:00:19]}  Bb3 {[%clk 0:00:01]} 46. Nh5 {[%clk 0:00:19]}  g6 {[%clk 0:00:01]} 47. Nf6 {[%clk 0:00:19]}  Bd1 {[%clk 0:00:01]} 48. Nxh7 {[%clk 0:00:18]} 1-0


[Site "https://www.chess.com"]

[Event "Titled Tuesday Blitz February 14 Early 2023"]
[White "Barrera Rincones, Josmar Joel"]
[Black "EREBUNI91"]
[WhiteFideId "3975487"]
[WhiteElo "1399"]
[BlackElo "2719"]
[Result "0-1"]
[Round "09"]
[TimeControl "180+2"]
[Date "2023.02.14"]
[WhiteClock "0:01:14"]
[BlackClock "0:00:39"]

1. d4 {[%clk 0:03:00]}  Nf6 {[%clk 0:02:20]} 2. c4 {[%clk 0:02:59]}  e6 {[%clk 0:02:20]} 3. Nc3 {[%clk 0:02:59]}  d5 {[%clk 0:02:21]} 4. cxd5 {[%clk 0:02:58]}  exd5 {[%clk 0:02:22]} 5. Bg5 {[%clk 0:02:58]}  Be7 {[%clk 0:02:23]} 6. e3 {[%clk 0:02:58]}  O-O {[%clk 0:02:23]} 7. Qc2 {[%clk 0:02:58]}  c6 {[%clk 0:02:23]} 8. Bd3 {[%clk 0:02:57]}  h6 {[%clk 0:02:24]} 9. Bh4 {[%clk 0:02:58]}  Nbd7 {[%clk 0:02:24]} 10. Nge2 {[%clk 0:02:57]}  Nh5 {[%clk 0:02:25]} 11. Bxe7 {[%clk 0:02:56]}  Qxe7 {[%clk 0:02:25]} 12. a3 {[%clk 0:02:56]}  Re8 {[%clk 0:02:26]} 13. b4 {[%clk 0:02:55]}  Nhf6 {[%clk 0:02:22]} 14. O-O {[%clk 0:02:53]}  b5 {[%clk 0:02:21]} 15. Nc1 {[%clk 0:02:48]}  a6 {[%clk 0:02:19]} 16. Nb3 {[%clk 0:02:48]}  Qd6 {[%clk 0:02:14]} 17. Ne2 {[%clk 0:02:41]}  Qe7 {[%clk 0:02:12]} 18. Qxc6 {[%clk 0:02:38]}  Rb8 {[%clk 0:02:09]} 19. Qc2 {[%clk 0:02:37]}  Bb7 {[%clk 0:02:08]} 20. Rac1 {[%clk 0:02:35]}  Rbc8 {[%clk 0:02:08]} 21. Qd2 {[%clk 0:02:35]}  Nb6 {[%clk 0:02:07]} 22. Nc5 {[%clk 0:02:33]}  Nc4 {[%clk 0:02:08]} 23. Qa2 {[%clk 0:02:30]}  Ne4 {[%clk 0:01:36]} 24. Ng3 {[%clk 0:02:25]}  Nxc5 {[%clk 0:01:30]} 25. bxc5 {[%clk 0:02:20]}  Bc6 {[%clk 0:01:26]} 26. Qe2 {[%clk 0:02:19]}  Nxa3 {[%clk 0:01:12]} 27. Ra1 {[%clk 0:02:14]}  b4 {[%clk 0:01:10]} 28. Bxa6 {[%clk 0:02:14]}  Rb8 {[%clk 0:01:10]} 29. Bd3 {[%clk 0:02:13]}  Nc4 {[%clk 0:01:07]} 30. Qg4 {[%clk 0:02:09]}  b3 {[%clk 0:01:02]} 31. Qf5 {[%clk 0:01:54]}  g6 {[%clk 0:00:58]} 32. Qh3 {[%clk 0:01:54]}  Kg7 {[%clk 0:00:53]} 33. Qg4 {[%clk 0:01:48]}  Qg5 {[%clk 0:00:46]} 34. Qf3 {[%clk 0:01:45]}  Nd2 {[%clk 0:00:45]} 35. Qe2 {[%clk 0:01:45]}  Nxf1 {[%clk 0:00:45]} 36. Rxf1 {[%clk 0:01:43]}  Rb4 {[%clk 0:00:42]} 37. f4 {[%clk 0:01:43]}  Qe7 {[%clk 0:00:41]} 38. f5 {[%clk 0:01:43]}  Qxe3+ {[%clk 0:00:40]} 39. Qxe3 {[%clk 0:01:42]}  Rxe3 {[%clk 0:00:41]} 40. f6+ {[%clk 0:01:43]}  Kf8 {[%clk 0:00:40]} 41. Be2 {[%clk 0:01:36]}  b2 {[%clk 0:00:39]} 42. Rb1 {[%clk 0:01:29]}  Ra3 {[%clk 0:00:37]} 43. Kf2 {[%clk 0:01:27]}  Ra1 {[%clk 0:00:29]} 44. Bd3 {[%clk 0:01:24]}  Rxb1 {[%clk 0:00:28]} 45. Bxb1 {[%clk 0:01:25]}  Rc4 {[%clk 0:00:29]} 46. Ne2 {[%clk 0:01:19]}  Rc1 {[%clk 0:00:30]} 47. Ba2 {[%clk 0:01:17]}  b1=Q {[%clk 0:00:30]} 48. Bxb1 {[%clk 0:01:18]}  Rxb1 {[%clk 0:00:31]} 49. Nc3 {[%clk 0:01:19]}  Rb2+ {[%clk 0:00:31]} 50. Kf3 {[%clk 0:01:19]}  Ke8 {[%clk 0:00:31]} 51. Ne2 {[%clk 0:01:19]}  Rxe2 {[%clk 0:00:30]} 52. Kxe2 {[%clk 0:01:20]}  Kd7 {[%clk 0:00:31]} 53. Kf3 {[%clk 0:01:16]}  Ke6 {[%clk 0:00:32]} 54. g4 {[%clk 0:01:17]}  Kxf6 {[%clk 0:00:31]} 55. h4 {[%clk 0:01:18]}  g5 {[%clk 0:00:28]} 56. h5 {[%clk 0:01:17]}  Ke6 {[%clk 0:00:28]} 57. Kg3 {[%clk 0:01:18]}  f5 {[%clk 0:00:28]} 58. gxf5+ {[%clk 0:01:19]}  Kxf5 {[%clk 0:00:25]} 59. Kf3 {[%clk 0:01:20]}  g4+ {[%clk 0:00:25]} 60. Kg3 {[%clk 0:01:20]}  Kg5 {[%clk 0:00:26]} 61. Kg2 {[%clk 0:01:20]}  Kxh5 {[%clk 0:00:27]} 62. Kg3 {[%clk 0:01:21]}  Kg5 {[%clk 0:00:27]} 63. Kg2 {[%clk 0:01:22]}  h5 {[%clk 0:00:28]} 64. Kh2 {[%clk 0:01:23]}  h4 {[%clk 0:00:29]} 65. Kg2 {[%clk 0:01:24]}  Kf4 {[%clk 0:00:30]} 66. Kf2 {[%clk 0:01:23]}  Ke4 {[%clk 0:00:30]} 67. Kg2 {[%clk 0:01:24]}  Kxd4 {[%clk 0:00:31]} 68. Kf2 {[%clk 0:01:25]}  Kxc5 {[%clk 0:00:32]} 69. Ke3 {[%clk 0:01:25]}  h3 {[%clk 0:00:31]} 70. Kf4 {[%clk 0:01:26]}  h2 {[%clk 0:00:32]} 71. Kxg4 {[%clk 0:01:27]}  h1=Q {[%clk 0:00:32]} 72. Kf5 {[%clk 0:01:28]}  Qe4+ {[%clk 0:00:32]} 73. Kf6 {[%clk 0:01:29]}  d4 {[%clk 0:00:33]} 74. Kg5 {[%clk 0:01:29]}  d3 {[%clk 0:00:34]} 75. Kf6 {[%clk 0:01:29]}  d2 {[%clk 0:00:34]} 76. Kg5 {[%clk 0:01:30]}  d1=Q {[%clk 0:00:34]} 77. Kf6 {[%clk 0:01:31]}  Qdf3+ {[%clk 0:00:34]} 78. Kg5 {[%clk 0:01:32]}  Qeg4+ {[%clk 0:00:35]} 79. Kh6 {[%clk 0:01:32]}  Be8 {[%clk 0:00:33]} 80. Kh7 {[%clk 0:01:31]}  Bg6+ {[%clk 0:00:34]} 81. Kh6 {[%clk 0:01:31]}  Bh7 {[%clk 0:00:35]} 82. Kxh7 {[%clk 0:01:29]}  Kd4 {[%clk 0:00:36]} 83. Kh6 {[%clk 0:01:29]}  Ke3 {[%clk 0:00:37]} 84. Kh7 {[%clk 0:01:29]}  Kf2 {[%clk 0:00:38]} 85. Kh6 {[%clk 0:01:30]}  Kg3 {[%clk 0:00:39]} 86. Kh7 {[%clk 0:01:14]}  Qh1# {[%clk 0:00:39]} 0-1


[Site "https://www.chess.com"]

[Event "Titled Tuesday Blitz February 14 Early 2023"]
[White "Sarkar, Justin"]
[Black "Vlassov, Nikolai"]
[WhiteFideId "2010011"]
[BlackFideId "4103360"]
[WhiteElo "2309"]
[BlackElo "2283"]
[Result "0-1"]
[Round "09"]
[TimeControl "180+2"]
[Date "2023.02.14"]
[WhiteClock "0:00:01"]
[BlackClock "0:01:33"]

1. e4 {[%clk 0:02:41]}  Nc6 {[%clk 0:02:59]} 2. Nc3 {[%clk 0:02:30]}  Nf6 {[%clk 0:02:58]} 3. Nf3 {[%clk 0:02:21]}  d5 {[%clk 0:02:58]} 4. exd5 {[%clk 0:02:17]}  Nxd5 {[%clk 0:02:59]} 5. Bb5 {[%clk 0:02:16]}  Bg4 {[%clk 0:02:54]} 6. h3 {[%clk 0:02:08]}  Bxf3 {[%clk 0:02:48]} 7. Qxf3 {[%clk 0:02:06]}  e6 {[%clk 0:02:49]} 8. Bxc6+ {[%clk 0:01:56]}  bxc6 {[%clk 0:02:48]} 9. O-O {[%clk 0:01:56]}  Bd6 {[%clk 0:02:42]} 10. Ne4 {[%clk 0:01:48]}  O-O {[%clk 0:02:41]} 11. d4 {[%clk 0:01:37]}  Rb8 {[%clk 0:02:32]} 12. c4 {[%clk 0:01:32]}  Nb4 {[%clk 0:02:28]} 13. Qe2 {[%clk 0:01:04]}  a5 {[%clk 0:02:19]} 14. Bg5 {[%clk 0:00:42]}  Be7 {[%clk 0:02:10]} 15. Bxe7 {[%clk 0:00:34]}  Qxe7 {[%clk 0:02:11]} 16. Nc5 {[%clk 0:00:32]}  Rb6 {[%clk 0:02:04]} 17. Rfd1 {[%clk 0:00:25]}  Rd8 {[%clk 0:01:54]} 18. a3 {[%clk 0:00:15]}  Na6 {[%clk 0:01:54]} 19. Nxa6 {[%clk 0:00:13]}  Rxa6 {[%clk 0:01:55]} 20. c5 {[%clk 0:00:11]}  Raa8 {[%clk 0:01:52]} 21. Qe4 {[%clk 0:00:06]}  Qd7 {[%clk 0:01:51]} 22. b4 {[%clk 0:00:04]}  Qd5 {[%clk 0:01:42]} 23. Qxd5 {[%clk 0:00:02]}  Rxd5 {[%clk 0:01:38]} 24. bxa5 {[%clk 0:00:02]}  Rxa5 {[%clk 0:01:35]} 25. a4 {[%clk 0:00:02]}  Kf8 {[%clk 0:01:36]} 26. Kf1 {[%clk 0:00:01]}  Ke7 {[%clk 0:01:36]} 27. f4 {[%clk 0:00:01]}  Rf5 {[%clk 0:01:33]} 28. g3 {[%clk 0:00:01]}  g5 {[%clk 0:01:33]} 0-1


[Site "https://www.chess.com"]

[Event "Titled Tuesday Blitz February 14 Early 2023"]
[White "Kulkarni, Vikramaditya"]
[Black "Bozorov, Makhsum"]
[WhiteFideId "5009847"]
[BlackFideId "14201330"]
[WhiteElo "2251"]
[BlackElo "2145"]
[Result "1-0"]
[Round "09"]
[TimeControl "180+2"]
[Date "2023.02.14"]
[WhiteClock "0:02:06"]
[BlackClock "0:01:04"]

1. d4 {[%clk 0:03:00]}  Nf6 {[%clk 0:02:58]} 2. c4 {[%clk 0:03:00]}  g6 {[%clk 0:02:52]} 3. Nc3 {[%clk 0:02:58]}  d5 {[%clk 0:02:45]} 4. Nf3 {[%clk 0:02:55]}  Bg7 {[%clk 0:02:30]} 5. Bg5 {[%clk 0:02:55]}  Ne4 {[%clk 0:02:06]} 6. cxd5 {[%clk 0:02:55]}  Nxg5 {[%clk 0:02:05]} 7. Nxg5 {[%clk 0:02:55]}  c6 {[%clk 0:02:05]} 8. Qb3 {[%clk 0:02:50]}  O-O {[%clk 0:02:01]} 9. O-O-O {[%clk 0:02:44]}  e6 {[%clk 0:01:51]} 10. h4 {[%clk 0:02:36]}  cxd5 {[%clk 0:01:49]} 11. f4 {[%clk 0:02:33]}  Nc6 {[%clk 0:01:46]} 12. e3 {[%clk 0:02:32]}  Bd7 {[%clk 0:01:37]} 13. h5 {[%clk 0:02:31]}  Na5 {[%clk 0:01:35]} 14. Qc2 {[%clk 0:02:31]}  b5 {[%clk 0:01:33]} 15. Kb1 {[%clk 0:02:30]}  Rc8 {[%clk 0:01:31]} 16. Nxh7 {[%clk 0:02:18]}  Kxh7 {[%clk 0:01:29]} 17. hxg6+ {[%clk 0:02:17]}  Kg8 {[%clk 0:01:29]} 18. gxf7+ {[%clk 0:02:17]}  Rxf7 {[%clk 0:01:27]} 19. Qg6 {[%clk 0:02:09]}  b4 {[%clk 0:01:09]} 20. Bd3 {[%clk 0:02:08]}  bxc3 {[%clk 0:01:04]} 21. Rh8+ {[%clk 0:02:06]} 1-0


[Site "https://www.chess.com"]

[Event "Titled Tuesday Blitz February 14 Early 2023"]
[White "Fiorito, Joaquin"]
[Black "Dzhaparov, Medet"]
[WhiteFideId "180173"]
[BlackFideId "13803689"]
[WhiteElo "2405"]
[BlackElo "1578"]
[Result "1-0"]
[Round "09"]
[TimeControl "180+2"]
[Date "2023.02.14"]
[WhiteClock "0:02:18"]
[BlackClock "0:01:59"]

1. d4 {[%clk 0:03:00]}  Nf6 {[%clk 0:02:59]} 2. Nc3 {[%clk 0:03:01]}  g6 {[%clk 0:02:59]} 3. e4 {[%clk 0:03:01]}  d6 {[%clk 0:02:57]} 4. Be3 {[%clk 0:03:00]}  Bg7 {[%clk 0:02:56]} 5. Qd2 {[%clk 0:03:00]}  O-O {[%clk 0:02:56]} 6. Bh6 {[%clk 0:02:58]}  Nh5 {[%clk 0:02:53]} 7. Bxg7 {[%clk 0:02:56]}  Nxg7 {[%clk 0:02:54]} 8. h4 {[%clk 0:02:55]}  e5 {[%clk 0:02:34]} 9. Nge2 {[%clk 0:02:52]}  Nc6 {[%clk 0:02:33]} 10. O-O-O {[%clk 0:02:51]}  a6 {[%clk 0:02:32]} 11. f3 {[%clk 0:02:50]}  b5 {[%clk 0:02:32]} 12. g4 {[%clk 0:02:49]}  exd4 {[%clk 0:02:26]} 13. Nxd4 {[%clk 0:02:48]}  Nxd4 {[%clk 0:02:27]} 14. Qxd4 {[%clk 0:02:48]}  Ne6 {[%clk 0:02:22]} 15. Qe3 {[%clk 0:02:47]}  Qf6 {[%clk 0:02:22]} 16. Nd5 {[%clk 0:02:46]}  Qd8 {[%clk 0:02:19]} 17. g5 {[%clk 0:02:29]}  Kh8 {[%clk 0:02:06]} 18. Qc3+ {[%clk 0:02:24]}  Ng7 {[%clk 0:02:03]} 19. h5 {[%clk 0:02:22]}  Qxg5+ {[%clk 0:02:02]} 20. f4 {[%clk 0:02:18]}  Qd8 {[%clk 0:01:59]} 21. h6 {[%clk 0:02:18]} 1-0


[Site "https://www.chess.com"]